[Event "XII Paracin Festival 2019"]
[Site "Paracin"]
[Date "2019.07.06"]
[Round "3.12"]
[White "Korpa, Bence"]
[Black "Rabrenovic, Vladan"]
[Result "1-0"]
[ECO "A25"]
[WhiteElo "2523"]
[BlackElo "2326"]
[Annotator "ChessBase"]
[PlyCount "97"]
[EventDate "2019.07.05"]
[EventType "swiss"]
[EventCountry "SRB"]
[SourceTitle "playchess.com"]
[Source "ChessBase"]
[SourceQuality "1"]
[TimeControl "5400+30"]

1. c4 {[%emt 0:00:00]} e5 {[%emt 0:02:20]} 2. g3 {[%emt 0:00:00]} Nc6 {[%emt 0:00:04]} 3. Bg2 {[%emt 0:00:00]} g6 {[%emt 0:00:04]} 4. Nc3 {[%emt 0:00:07]} Bg7 {[%emt 0:00:02]} 5. e3 {[%emt 0:00:40]} d6 {[%emt 0:00:35]} 6. Nge2 {[%emt 0:00:11]} Nf6 {[%emt 0:00:24]} 7. O-O {[%emt 0:00:45]} O-O {[%emt 0:00:05]} 8. d3 {[%emt 0:00:24]} Be6 {[%emt 0:00:14]} 9. b3 {[%emt 0:00:33]} Qd7 {[%emt 0:00:20]} 10. Bb2 {[%emt 0:01:25]} Bh3 {[%emt 0:00:18]} 11. e4 {[%emt 0:01:33]} Nd4 {[%emt 0:08:18]} 12. Nxd4 {[%emt 0:09:58]} exd4 {[%emt 0:00:03]} 13. Ne2 {[%emt 0:01:32]} c5 {[%emt 0:00:13]} 14. Bxh3 {[%emt 0:07:33]} Qxh3 {[%emt 0:00:06]} 15. Nf4 {[%emt 0:00:10]} Qd7 {[%emt 0:00:44]} 16. Kg2 {[%emt 0:00:07]} b5 {[%emt 0:00:10]} 17. Qc2 {[%emt 0:04:27]} Rfb8 {[%emt 0:03:31]} 18. Rae1 {[%emt 0:04:01]} bxc4 {[%emt 0:07:35]} 19. bxc4 {[%emt 0:01:16]} Rb6 {[%emt 0:00:34]} 20. Ba1 {[%emt 0:03:59]} Rab8 {[%emt 0:07:12]} 21. h3 {[%emt 0:01:27]} h5 {[%emt 0:09:34]} 22. Ne2 {[%emt 0:03:05]} Ra6 {[%emt 0:08:33]} 23. Rb1 {[%emt 0:14:31]} Rxb1 {[%emt 0:01:55]} 24. Rxb1 {[%emt 0:00:58]} Qa4 {[%emt 0:00:00]} 25. Rb8+ {[%emt 0:00:30]} Kh7 {[%emt 0:00:06]} 26. Qxa4 {[%emt 0:00:45]} Rxa4 {[%emt 0:00:03]} 27. Nc1 {[%emt 0:00:41]} Bh6 {[%emt 0:07:52]} 28. Bb2 {[%emt 0:00:13]} h4 {[%emt 0:00:11]} 29. Rb7 {[%emt 0:05:22]} Kg7 {[%emt 0:00:14]} 30. a3 {[%emt 0:00:12]} hxg3 {[%emt 0:02:16]} 31. fxg3 {[%emt 0:00:08]} Kf8 {[%emt 0:13:36]} 32. Nb3 {[%emt 0:02:13]} Nxe4 {[%emt 0:17:19]} 33. dxe4 {[%emt 0:01:13]} Rxc4 {[%emt 0:00:06]} 34. Kf3 {[%emt 0:03:09]} Be3 {[%emt 0:01:07]} 35. Na1 {[%emt 0:02:30]} Bc1 {[%emt 0:04:40]} 36. Bxc1 {[%emt 0:10:03]} Rxc1 {[%emt 0:00:01]} 37. Nb3 {[%emt 0:00:08]} Rc2 {[%emt 0:03:32]} 38. Na5 {[%emt 0:13:22]} Rc3+ {[%emt 0:03:17]} 39. Kf4 {[%emt 0:00:40]} g5+ {[%emt 0:00:40]} 40. Kxg5 {[%emt 0:00:49]} Rxg3+ {[%emt 0:00:01]} 41. Kf4 {[%emt 0:00:00]} Rxh3 {[%emt 0:01:57]} 42. Nc4 {[%emt 0:00:30]} Rc3 {[%emt 0:00:29]} 43. Nxd6 Rxa3 {[%emt 0:00:04]} 44. Rxf7+ {[%emt 0:00:25]} Kg8 {[%emt 0:00:03]} 45. Rc7 {[%emt 0:03:16]} Rc3 {[%emt 0:01:04]} 46. e5 {[%emt 0:00:11]} Rc1 {[%emt 0:00:43]} 47. e6 {[%emt 0:00:14]} Re1 {[%emt 0:00:15]} 48. Ne4 {[%emt 0:00:34]} d3 {[%emt 0:00:21]} 49. Nf6+ {[%emt 0:00:07]} 1-0

[Event "XII Paracin Festival 2019"]
[Site "Paracin"]
[Date "2019.07.06"]
[Round "3.13"]
[White "Lazov, Toni"]
[Black "Sanal, Vahap"]
[Result "1/2-1/2"]
[ECO "C54"]
[WhiteElo "2313"]
[BlackElo "2520"]
[Annotator "ChessBase"]
[PlyCount "50"]
[EventDate "2019.07.05"]
[EventType "swiss"]
[EventCountry "SRB"]
[SourceTitle "playchess.com"]
[Source "ChessBase"]
[SourceQuality "1"]
[TimeControl "5400+30"]

1. e4 {[%emt 0:03:06]} e5 {[%emt 0:03:25]} 2. Nf3 {[%emt 0:00:24]} Nc6 {[%emt 0:00:09]} 3. Bc4 {[%emt 0:00:43]} Bc5 {[%emt 0:01:00]} 4. c3 {[%emt 0:00:26]} Nf6 {[%emt 0:00:09]} 5. d3 {[%emt 0:00:18]} d6 {[%emt 0:00:16]} 6. a4 {[%emt 0:01:43]} a6 {[%emt 0:00:19]} 7. Bg5 {[%emt 0:00:19]} h6 {[%emt 0:00:11]} 8. Bh4 {[%emt 0:00:02]} Ba7 {[%emt 0:02:10]} 9. Nbd2 {[%emt 0:00:31]} Qe7 {[%emt 0:04:22]} 10. O-O {[%emt 0:00:34]} g5 {[%emt 0:00:37]} 11. Bg3 {[%emt 0:00:35]} Nh7 {[%emt 0:02:27]} 12. Kh1 {[%emt 0:06:38]} h5 {[%emt 0:11:08]} 13. h4 {[%emt 0:04:57]} f6 {[%emt 0:00:52]} 14. b4 {[%emt 0:06:32]} Nd8 {[%emt 0:07:03]} 15. d4 {[%emt 0:01:24]} g4 {[%emt 0:01:31]} 16. Ne1 {[%emt 0:21:55]} exd4 {[%emt 0:00:26]} 17. cxd4 {[%emt 0:00:08]} Bxd4 {[%emt 0:00:26]} 18. Rc1 {[%emt 0:00:06]} Nf8 {[%emt 0:05:46]} 19. Nd3 {[%emt 0:13:14]} Ng6 {[%emt 0:01:32]} 20. b5 {[%emt 0:02:22]} a5 {[%emt 0:05:40]} 21. Bd5 {[%emt 0:05:31]} Nf7 {[%emt 0:02:50]} 22. Qc2 {[%emt 0:02:07]} Bb6 {[%emt 0:03:32]} 23. Nc4 {[%emt 0:02:36]} Bd4 {[%emt 0:04:31]} 24. Nd2 {[%emt 0:12:30]} Bb6 {[%emt 0:04:43]} 25. Nc4 {[%emt 0:00:07]} Bd4 {[%emt 0:01:11]} 1/2-1/2

[Event "XII Paracin Festival 2019"]
[Site "Paracin"]
[Date "2019.07.06"]
[Round "3.14"]
[White "Tan, Justin"]
[Black "Apaydin, Fethi"]
[Result "0-1"]
[ECO "B41"]
[WhiteElo "2513"]
[BlackElo "2310"]
[Annotator "ChessBase"]
[PlyCount "111"]
[EventDate "2019.07.05"]
[EventType "swiss"]
[EventCountry "SRB"]
[SourceTitle "playchess.com"]
[Source "ChessBase"]
[SourceQuality "1"]
[TimeControl "5400+30"]

1. e4 {[%emt 0:03:31]} c5 {[%emt 0:03:20]} 2. Nf3 {[%emt 0:00:06]} e6 {[%emt 0:01:01]} 3. d4 {[%emt 0:00:23]} cxd4 {[%emt 0:00:07]} 4. Nxd4 {[%emt 0:00:04]} a6 {[%emt 0:00:04]} 5. c4 {[%emt 0:00:06]} Nc6 {[%emt 0:07:44]} 6. Nxc6 {[%emt 0:00:29]} bxc6 {[%emt 0:00:05]} 7. Nc3 {[%emt 0:01:58]} Bc5 {[%emt 0:05:32]} 8. Qf3 {[%emt 0:07:09]} Ne7 {[%emt 0:06:14]} 9. h4 {[%emt 0:04:34]} O-O {[%emt 0:05:32]} 10. h5 {[%emt 0:02:18]} f5 {[%emt 0:02:42]} 11. e5 {[%emt 0:00:08]} Bd4 {[%emt 0:07:32]} 12. h6 {[%emt 0:29:44]} g6 {[%emt 0:06:55]} 13. Bf4 {[%emt 0:13:10]} Qa5 {[%emt 0:03:32]} 14. Qg3 {[%emt 0:04:32]} Rb8 {[%emt 0:00:38]} 15. O-O-O {[%emt 0:00:10]} c5 {[%emt 0:04:54]} 16. Rd2 {[%emt 0:06:02]} Nc6 {[%emt 0:01:39]} 17. Kd1 {[%emt 0:04:55]} Bxc3 {[%emt 0:12:34]} 18. Qxc3 {[%emt 0:00:37]} Qxa2 {[%emt 0:00:09]} 19. Be3 {[%emt 0:04:28]} Rb3 {[%emt 0:06:39]} 20. Qc2 {[%emt 0:00:49]} Nb4 {[%emt 0:04:16]} 21. Qc1 {[%emt 0:00:02]} Qa4 {[%emt 0:01:49]} 22. Ke1 {[%emt 0:00:43]} Qa5 {[%emt 0:08:14]} 23. Qd1 {[%emt 0:04:55]} Rxb2 {[%emt 0:01:24]} 24. Rxb2 {[%emt 0:00:01]} Nd3+ {[%emt 0:00:07]} 25. Ke2 {[%emt 0:00:04]} Nxb2 {[%emt 0:00:06]} 26. Qb3 {[%emt 0:00:02]} Qb4 {[%emt 0:04:44]} 27. Qxb4 {[%emt 0:00:02]} cxb4 {[%emt 0:00:03]} 28. Bc5 {[%emt 0:00:22]} Re8 {[%emt 0:01:29]} 29. Kd2 {[%emt 0:02:36]} a5 {[%emt 0:00:40]} 30. Bd4 {[%emt 0:00:03]} Na4 {[%emt 0:00:30]} 31. c5 {[%emt 0:01:39]} Nc3 {[%emt 0:03:22]} 32. Bxc3 {[%emt 0:00:23]} bxc3+ {[%emt 0:00:04]} 33. Kxc3 {[%emt 0:00:02]} Bb7 {[%emt 0:00:29]} 34. Bb5 {[%emt 0:00:25]} Rc8 {[%emt 0:01:15]} 35. Bxd7 {[%emt 0:01:39]} Rxc5+ {[%emt 0:00:20]} 36. Kb3 {[%emt 0:00:02]} Kf7 {[%emt 0:01:41]} 37. f3 {[%emt 0:01:00]} Bd5+ {[%emt 0:00:31]} 38. Ka4 {[%emt 0:00:20]} Ke7 {[%emt 0:00:14]} 39. Bb5 {[%emt 0:00:08]} Bb3+ {[%emt 0:00:29]} 40. Kxa5 {[%emt 0:00:34]} Bc4 {[%emt 0:00:40]} 41. Kb4 {[%emt 0:00:04]} Rxb5+ {[%emt 0:00:05]} 42. Kxc4 {[%emt 0:00:02]} Rxe5 {[%emt 0:00:05]} 43. Rb1 {[%emt 0:01:18]} Rd5 {[%emt 0:00:58]} 44. Rb8 {[%emt 0:00:16]} Rd7 {[%emt 0:00:28]} 45. f4 {[%emt 0:01:20]} Kf7 {[%emt 0:00:54]} 46. Rh8 {[%emt 0:00:59]} Kf6 {[%emt 0:00:01]} 47. g3 {[%emt 0:03:23]} e5 {[%emt 0:00:58]} 48. Rf8+ {[%emt 0:01:51]} Ke6 {[%emt 0:00:24]} 49. fxe5 {[%emt 0:01:38]} Kxe5 {[%emt 0:00:12]} 50. Rg8 {[%emt 0:00:39]} Rd4+ {[%emt 0:00:52]} 51. Kc5 {[%emt 0:00:46]} Rg4 {[%emt 0:00:30]} 52. Rg7 {[%emt 0:01:31]} Rxg3 {[%emt 0:00:10]} 53. Re7+ {[%emt 0:00:50]} Kf4 {[%emt 0:00:30]} 54. Rxh7 {[%emt 0:00:09]} Rh3 {[%emt 0:00:20]} 55. Rh8 {[%emt 0:00:03]} g5 {[%emt 0:00:24]} 56. Kd4 {Ke5+} 0-1

[Event "XII Paracin Festival 2019"]
[Site "Paracin"]
[Date "2019.07.06"]
[Round "3.15"]
[White "Eswaran, Ashritha"]
[Black "Vishnu Prasanna. V"]
[Result "0-1"]
[ECO "C53"]
[WhiteElo "2257"]
[BlackElo "2505"]
[Annotator "ChessBase"]
[PlyCount "72"]
[EventDate "2019.07.05"]
[EventType "swiss"]
[EventCountry "SRB"]
[SourceTitle "playchess.com"]
[Source "ChessBase"]
[SourceQuality "1"]
[TimeControl "5400+30"]

1. e4 {[%emt 0:00:00]} e5 {[%emt 0:00:49]} 2. Nf3 {[%emt 0:00:00]} Nc6 {[%emt 0:00:06]} 3. Bc4 {[%emt 0:00:04]} Bc5 {[%emt 0:00:07]} 4. c3 {[%emt 0:00:22]} Bb6 {[%emt 0:00:53]} 5. d3 {[%emt 0:01:06]} Nf6 {[%emt 0:00:24]} 6. a4 {[%emt 0:01:08]} d6 {[%emt 0:01:24]} 7. Nbd2 {[%emt 0:00:50]} O-O {[%emt 0:03:25]} 8. O-O {[%emt 0:02:05]} h6 {[%emt 0:01:27]} 9. b4 {[%emt 0:03:29]} a5 {[%emt 0:01:23]} 10. b5 {[%emt 0:03:17]} Ne7 {[%emt 0:00:07]} 11. Bb3 {[%emt 0:07:38]} c6 {[%emt 0:02:18]} 12. Nc4 {[%emt 0:15:41]} Bc7 {[%emt 0:01:17]} 13. Re1 {[%emt 0:02:09]} Ng6 {[%emt 0:02:22]} 14. d4 {[%emt 0:07:26]} Be6 {[%emt 0:11:00]} 15. Ba3 {[%emt 0:05:54]} Re8 {[%emt 0:04:54]} 16. dxe5 {[%emt 0:07:58]} dxe5 {[%emt 0:01:14]} 17. Qc2 {[%emt 0:04:19]} cxb5 {[%emt 0:02:25]} 18. axb5 {[%emt 0:00:36]} Qd7 {[%emt 0:03:30]} 19. Ncd2 {[%emt 0:08:04]} Bxb3 {[%emt 0:04:19]} 20. Qxb3 {[%emt 0:00:07]} a4 {[%emt 0:00:51]} 21. Qb1 {[%emt 0:05:21]} Nf4 {[%emt 0:02:10]} 22. Nf1 {[%emt 0:03:29]} Bb6 {[%emt 0:01:11]} 23. Ne3 {[%emt 0:05:05]} Ng4 {[%emt 0:02:22]} 24. Ra2 {[%emt 0:02:19]} Nxe3 {[%emt 0:01:57]} 25. fxe3 {[%emt 0:00:07]} Rad8 {[%emt 0:01:53]} 26. Kh1 {[%emt 0:01:01]} Nd3 {[%emt 0:03:53]} 27. Ree2 {[%emt 0:01:54]} Qg4 {[%emt 0:00:26]} 28. Qc2 {[%emt 0:07:02]} Qxe4 {[%emt 0:01:01]} 29. Ra1 {[%emt 0:04:35]} Qc4 {[%emt 0:00:33]} 30. Nd2 {[%emt 0:01:15]} Qxb5 {[%emt 0:00:29]} 31. c4 {[%emt 0:00:09]} Qc6 {[%emt 0:00:28]} 32. Rb1 {[%emt 0:00:33]} Bc5 {[%emt 0:01:27]} 33. Bxc5 Nxc5 {[%emt 0:00:05]} 34. Rb5 {[%emt 0:00:54]} a3 {[%emt 0:00:40]} 35. Qa2 {[%emt 0:00:52]} Ne4 {[%emt 0:01:07]} 36. Nxe4 {[%emt 0:00:30]} Rd1+ {[%emt 0:00:08]} 0-1

[Event "XII Paracin Festival 2019"]
[Site "Paracin"]
[Date "2019.07.06"]
[Round "3.16"]
[White "Savic, Miodrag R"]
[Black "Maksimovic, Bojan"]
[Result "1/2-1/2"]
[ECO "B06"]
[WhiteElo "2503"]
[BlackElo "2326"]
[Annotator "ChessBase"]
[PlyCount "140"]
[EventDate "2019.07.05"]
[EventType "swiss"]
[EventCountry "SRB"]
[SourceTitle "playchess.com"]
[Source "ChessBase"]
[SourceQuality "1"]
[TimeControl "5400+30"]

1. e4 {[%emt 0:00:00]} g6 {[%emt 0:00:00]} 2. d4 {[%emt 0:00:00]} Bg7 {[%emt 0:00:00]} 3. Nc3 {[%emt 0:00:04]} d6 {[%emt 0:00:00]} 4. Nf3 {[%emt 0:00:32]} a6 {[%emt 0:00:18]} 5. Be2 {[%emt 0:01:05]} b5 {[%emt 0:01:00]} 6. a4 {[%emt 0:02:26]} b4 {[%emt 0:00:21]} 7. Nd5 {[%emt 0:00:02]} a5 {[%emt 0:00:34]} 8. c3 {[%emt 0:00:24]} c6 {[%emt 0:01:06]} 9. Ne3 {[%emt 0:00:26]} bxc3 {[%emt 0:00:50]} 10. bxc3 {[%emt 0:00:02]} Nf6 {[%emt 0:00:16]} 11. e5 {[%emt 0:00:19]} dxe5 {[%emt 0:01:25]} 12. Nxe5 {[%emt 0:00:34]} O-O {[%emt 0:00:53]} 13. Ba3 {[%emt 0:06:07]} Nd5 {[%emt 0:07:20]} 14. Nxd5 {[%emt 0:02:53]} cxd5 {[%emt 0:00:49]} 15. O-O {[%emt 0:01:33]} Bxe5 {[%emt 0:11:00]} 16. dxe5 {[%emt 0:00:02]} Nc6 {[%emt 0:00:30]} 17. Bb5 {[%emt 0:08:14]} Na7 {[%emt 0:11:32]} 18. Qd2 {[%emt 0:32:03]} Nxb5 {[%emt 0:18:28]} 19. axb5 {[%emt 0:00:05]} Be6 {[%emt 0:01:30]} 20. Qg5 {[%emt 0:08:24]} Re8 {[%emt 0:02:04]} 21. Bc5 {[%emt 0:00:42]} Qc7 {[%emt 0:04:06]} 22. Bd4 {[%emt 0:00:09]} Qd7 {[%emt 0:01:58]} 23. f4 {[%emt 0:02:24]} Bf5 {[%emt 0:04:00]} 24. b6 {[%emt 0:08:21]} a4 {[%emt 0:09:08]} 25. Rf2 {[%emt 0:00:57]} Ra6 {[%emt 0:10:40]} 26. h3 {[%emt 0:01:27]} Qb5 {[%emt 0:04:18]} 27. g4 {[%emt 0:05:38]} Be4 {[%emt 0:00:17]} 28. f5 {[%emt 0:00:02]} Rxb6 {[%emt 0:05:07]} 29. Bxb6 {[%emt 0:06:02]} Qxb6 {[%emt 0:00:06]} 30. f6 {[%emt 0:00:23]} exf6 {[%emt 0:01:40]} 31. Qxf6 {[%emt 0:00:25]} Qa7 {[%emt 0:00:53]} 32. Kh2 {[%emt 0:04:45]} Rxe5 {[%emt 0:02:01]} 33. Rxa4 {[%emt 0:00:53]} Qc7 {[%emt 0:00:09]} 34. Qf4 {[%emt 0:04:50]} Re7 {[%emt 0:00:19]} 35. Qxc7 {[%emt 0:01:38]} Rxc7 {[%emt 0:00:01]} 36. Ra3 {[%emt 0:00:05]} Kg7 {[%emt 0:00:50]} 37. h4 {[%emt 0:00:32]} h6 {[%emt 0:01:30]} 38. g5 {[%emt 0:01:55]} hxg5 {[%emt 0:00:45]} 39. hxg5 {[%emt 0:00:00]} Bf5 {[%emt 0:00:12]} 40. Kg3 {[%emt 0:00:34]} Be6 {[%emt 0:00:31]} 41. Rf4 {[%emt 0:00:17]} Rb7 {[%emt 0:00:18]} 42. Rb4 {[%emt 0:00:03]} Rc7 {[%emt 0:01:06]} 43. Kf4 {[%emt 0:00:04]} Rc8 {[%emt 0:00:35]} 44. Kg3 {[%emt 0:03:34]} Rh8 {[%emt 0:00:19]} 45. Rh4 {[%emt 0:00:01]} Rc8 {[%emt 0:00:30]} 46. Kf4 {[%emt 0:00:40]} Rc4+ {[%emt 0:00:12]} 47. Kg3 {[%emt 0:00:01]} Rc8 {[%emt 0:00:01]} 48. Kf3 {[%emt 0:00:09]} Bf5 {[%emt 0:00:56]} 49. Ke3 {[%emt 0:00:18]} Be6 {[%emt 0:00:36]} 50. Kd3 {[%emt 0:01:02]} Bf5+ {[%emt 0:00:37]} 51. Kd2 {[%emt 0:00:02]} Rb8 {[%emt 0:00:31]} 52. Ke3 {[%emt 0:01:50]} Be6 {[%emt 0:01:03]} 53. Rh2 {[%emt 0:00:47]} Rb1 {[%emt 0:00:34]} 54. Rg2 {[%emt 0:00:06]} Rd1 {[%emt 0:00:34]} 55. Ra4 {[%emt 0:00:20]} Re1+ {[%emt 0:00:11]} 56. Kd2 {[%emt 0:00:13]} Rb1 {[%emt 0:00:23]} 57. Rb4 {[%emt 0:00:29]} Ra1 {[%emt 0:00:27]} 58. Ke3 {[%emt 0:00:08]} Rd1 {[%emt 0:00:11]} 59. Rh4 {[%emt 0:00:25]} Kf8 {[%emt 0:00:18]} 60. Rh8+ {[%emt 0:00:40]} Ke7 {[%emt 0:00:13]} 61. Rb8 {[%emt 0:00:29]} Kd6 {[%emt 0:00:32]} 62. Rb6+ {[%emt 0:01:05]} Ke5 {[%emt 0:00:07]} 63. Rb5 {[%emt 0:00:36]} Kd6 {[%emt 0:00:59]} 64. Ra5 {[%emt 0:00:34]} Rc1 {[%emt 0:00:20]} 65. Kd2 {[%emt 0:00:20]} Rb1 {[%emt 0:00:06]} 66. Ke3 {[%emt 0:00:32]} Re1+ {[%emt 0:00:07]} 67. Kd3 {[%emt 0:00:29]} Rb1 {[%emt 0:00:44]} 68. Ke3 {[%emt 0:00:44]} Re1+ {[%emt 0:00:07]} 69. Kd2 {[%emt 0:00:06]} Rb1 {[%emt 0:00:06]} 70. Ke3 {[%emt 0:00:57]} Ke5 {Ke4+} 1/2-1/2

[Event "XII Paracin Festival 2019"]
[Site "Paracin"]
[Date "2019.07.06"]
[Round "3.17"]
[White "Lorparizangeneh, Shahin"]
[Black "Dedebas, Emre Emin"]
[Result "1/2-1/2"]
[ECO "A06"]
[WhiteElo "2494"]
[BlackElo "2301"]
[Annotator "ChessBase"]
[PlyCount "52"]
[EventDate "2019.07.05"]
[EventType "swiss"]
[EventCountry "SRB"]
[SourceTitle "playchess.com"]
[Source "ChessBase"]
[SourceQuality "1"]
[TimeControl "5400+30"]

1. Nf3 {[%emt 0:01:42]} d5 {[%emt 0:00:00]} 2. g3 {[%emt 0:00:03]} Nf6 {[%emt 0:00:03]} 3. Bg2 {[%emt 0:00:06]} e6 {[%emt 0:00:04]} 4. O-O {[%emt 0:00:06]} Be7 {[%emt 0:00:04]} 5. c4 {[%emt 0:00:22]} O-O {[%emt 0:00:09]} 6. b3 {[%emt 0:00:08]} b6 {[%emt 0:01:40]} 7. Bb2 {[%emt 0:00:54]} Bb7 {[%emt 0:00:10]} 8. e3 {[%emt 0:01:25]} c5 {[%emt 0:04:58]} 9. Qe2 {[%emt 0:12:30]} Nc6 {[%emt 0:05:03]} 10. Rd1 {[%emt 0:00:50]} Qc7 {[%emt 0:11:55]} 11. Nc3 {[%emt 0:01:13]} Rad8 {[%emt 0:08:27]} 12. Rac1 {[%emt 0:05:49]} Qb8 {[%emt 0:12:51]} 13. d3 {[%emt 0:22:03]} Rfe8 {[%emt 0:04:07]} 14. cxd5 {[%emt 0:02:19]} exd5 {[%emt 0:06:58]} 15. d4 {[%emt 0:05:14]} cxd4 {[%emt 0:14:12]} 16. exd4 {[%emt 0:02:14]} Bf8 {[%emt 0:05:51]} 17. Qb5 {[%emt 0:04:54]} Qd6 {[%emt 0:04:57]} 18. Na4 {[%emt 0:05:21]} Ne4 {[%emt 0:05:34]} 19. Nc5 bxc5 {[%emt 0:05:08]} 20. Qxb7 {[%emt 0:07:37]} Rb8 {[%emt 0:00:11]} 21. Qa6 {[%emt 0:00:57]} c4 {[%emt 0:01:04]} 22. Ne5 {[%emt 0:06:16]} Nxe5 {[%emt 0:00:54]} 23. Qxd6 {[%emt 0:00:02]} Nf3+ {[%emt 0:00:12]} 24. Bxf3 {[%emt 0:00:20]} Bxd6 {[%emt 0:00:09]} 25. Bxe4 {[%emt 0:05:39]} Rxe4 {[%emt 0:00:07]} 26. Rc2 {[%emt 0:00:01]} cxb3 {[%emt 0:01:19]} 1/2-1/2

[Event "XII Paracin Festival 2019"]
[Site "Paracin"]
[Date "2019.07.06"]
[Round "3.18"]
[White "Spirliadis, Achileas"]
[Black "Kosic, Dragan"]
[Result "0-1"]
[ECO "A40"]
[WhiteElo "2151"]
[BlackElo "2482"]
[Annotator "ChessBase"]
[PlyCount "114"]
[EventDate "2019.07.05"]
[EventType "swiss"]
[EventCountry "SRB"]
[SourceTitle "playchess.com"]
[Source "ChessBase"]
[SourceQuality "1"]
[TimeControl "5400+30"]

1. d4 {[%emt 0:00:46]} Nf6 {[%emt 0:00:00]} 2. c4 {[%emt 0:00:08]} e6 {[%emt 0:00:00]} 3. g3 {[%emt 0:00:20]} Bb4+ {[%emt 0:00:17]} 4. Bd2 {[%emt 0:00:07]} a5 {[%emt 0:00:11]} 5. Bg2 {[%emt 0:00:22]} d6 {[%emt 0:01:37]} 6. e3 {[%emt 0:04:47]} e5 {[%emt 0:02:40]} 7. Ne2 {[%emt 0:00:47]} Nc6 {[%emt 0:02:25]} 8. O-O {[%emt 0:00:52]} Bxd2 {[%emt 0:01:59]} 9. Qxd2 {[%emt 0:00:08]} O-O {[%emt 0:00:12]} 10. Nbc3 {[%emt 0:01:47]} Bd7 {[%emt 0:02:20]} 11. h3 {[%emt 0:03:04]} Re8 {[%emt 0:03:45]} 12. Rae1 {[%emt 0:02:07]} a4 {[%emt 0:02:34]} 13. Qc2 {[%emt 0:11:52]} Qc8 {[%emt 0:10:55]} 14. Kh2 {[%emt 0:03:47]} Bf5 {[%emt 0:04:04]} 15. Qd1 {[%emt 0:01:56]} Nb4 {[%emt 0:03:28]} 16. e4 {[%emt 0:05:53]} Bd7 {[%emt 0:04:51]} 17. a3 {[%emt 0:00:28]} Nc6 {[%emt 0:01:25]} 18. Nd5 {[%emt 0:00:43]} Qd8 {[%emt 0:06:34]} 19. f4 {[%emt 0:01:26]} exd4 {[%emt 0:05:05]} 20. Nxd4 {[%emt 0:01:05]} Nxd4 {[%emt 0:02:43]} 21. Qxd4 {[%emt 0:00:06]} c5 {[%emt 0:02:12]} 22. Qc3 {[%emt 0:05:21]} Bc6 {[%emt 0:00:49]} 23. e5 {[%emt 0:03:04]} dxe5 {[%emt 0:01:08]} 24. fxe5 {[%emt 0:00:35]} Nd7 {[%emt 0:00:08]} 25. Rf2 {[%emt 0:03:20]} Qa5 {[%emt 0:04:29]} 26. Qxa5 {[%emt 0:04:29]} Rxa5 {[%emt 0:00:01]} 27. Rfe2 {[%emt 0:01:46]} Nf8 {[%emt 0:00:59]} 28. Nc7 {[%emt 0:02:54]} Re7 {[%emt 0:02:46]} 29. e6 {[%emt 0:01:43]} Rxc7 {[%emt 0:10:39]} 30. Bxc6 {[%emt 0:02:47]} Nxe6 {[%emt 0:01:55]} 31. Bd5 {[%emt 0:00:08]} Ra6 {[%emt 0:00:16]} 32. Bxe6 {[%emt 0:03:56]} fxe6 {[%emt 0:07:06]} 33. Rxe6 {[%emt 0:00:40]} Rd7 {[%emt 0:01:21]} 34. h4 {[%emt 0:02:18]} Rxe6 {[%emt 0:00:34]} 35. Rxe6 {[%emt 0:00:04]} Rd2+ {[%emt 0:00:07]} 36. Kh3 {[%emt 0:00:05]} Rxb2 {[%emt 0:00:43]} 37. Re8+ {[%emt 0:00:30]} Kf7 {[%emt 0:00:05]} 38. Ra8 {[%emt 0:00:03]} h5 {[%emt 0:03:28]} 39. Rxa4 {[%emt 0:00:23]} g6 {[%emt 0:01:23]} 40. Ra8 {[%emt 0:00:52]} Kf6 {[%emt 0:00:17]} 41. Rc8 {[%emt 0:03:40]} b6 {[%emt 0:00:08]} 42. Rc6+ {[%emt 0:01:12]} Kf5 {[%emt 0:00:23]} 43. Rc8 {[%emt 0:01:05]} Rb3 {[%emt 0:02:09]} 44. Rf8+ {[%emt 0:02:48]} Ke5 {[%emt 0:00:32]} 45. Rg8 {[%emt 0:00:24]} Kd4 {[%emt 0:02:53]} 46. Rxg6 {[%emt 0:00:07]} Kxc4 {[%emt 0:00:04]} 47. Rh6 {[%emt 0:04:39]} b5 {[%emt 0:00:20]} 48. Rxh5 {[%emt 0:00:42]} Rxa3 {[%emt 0:00:05]} 49. Rh7 {[%emt 0:05:01]} b4 {[%emt 0:00:11]} 50. Rb7 {[%emt 0:00:30]} b3 {[%emt 0:01:06]} 51. h5 {[%emt 0:00:05]} Kc3 {[%emt 0:01:22]} 52. Kg4 {[%emt 0:04:09]} b2 {[%emt 0:00:26]} 53. h6 {[%emt 0:02:44]} Kc2 {[%emt 0:00:40]} 54. h7 {[%emt 0:00:51]} Ra8 {[%emt 0:00:04]} 55. Kh5 {[%emt 0:01:49]} b1=Q {[%emt 0:01:39]} 56. Rxb1 {[%emt 0:00:07]} Kxb1 {[%emt 0:00:04]} 57. g4 {[%emt 0:00:07]} Rh8 {[%emt 0:05:07]} 0-1

[Event "XII Paracin Festival 2019"]
[Site "Paracin"]
[Date "2019.07.06"]
[Round "3.19"]
[White "Stankovic, Milos"]
[Black "Colovic, Dusan"]
[Result "1-0"]
[ECO "B06"]
[WhiteElo "2462"]
[BlackElo "2297"]
[Annotator "ChessBase"]
[PlyCount "53"]
[EventDate "2019.07.05"]
[EventType "swiss"]
[EventCountry "SRB"]
[SourceTitle "playchess.com"]
[Source "ChessBase"]
[SourceQuality "1"]
[TimeControl "5400+30"]

1. e4 {[%emt 0:00:00]} d6 {[%emt 0:00:00]} 2. d4 {[%emt 0:00:24]} g6 {[%emt 0:00:31]} 3. Nc3 {[%emt 0:00:37]} Bg7 {[%emt 0:00:31]} 4. Be3 {[%emt 0:02:10]} Nf6 {[%emt 0:00:35]} 5. Nf3 {[%emt 0:01:22]} O-O {[%emt 0:00:21]} 6. Bd3 {[%emt 0:01:26]} c6 {[%emt 0:08:25]} 7. h3 {[%emt 0:07:19]} Nbd7 {[%emt 0:10:01]} 8. Qd2 {[%emt 0:04:04]} e5 {[%emt 0:07:25]} 9. dxe5 {[%emt 0:02:31]} dxe5 {[%emt 0:02:00]} 10. Bh6 {[%emt 0:00:37]} Qc7 {[%emt 0:07:50]} 11. O-O {[%emt 0:06:03]} Re8 {[%emt 0:08:28]} 12. Bxg7 {[%emt 0:01:11]} Kxg7 {[%emt 0:05:26]} 13. Ne2 {[%emt 0:00:32]} Nf8 {[%emt 0:06:05]} 14. Qc3 {[%emt 0:03:54]} h6 {[%emt 0:08:40]} 15. Ng3 {[%emt 0:03:39]} Bd7 {[%emt 0:06:17]} 16. Rad1 {[%emt 0:01:00]} Rad8 {[%emt 0:01:04]} 17. Bc4 {[%emt 0:01:45]} N8h7 {[%emt 0:02:21]} 18. Rd2 {[%emt 0:10:34]} Ng5 {[%emt 0:03:51]} 19. Nxg5 {[%emt 0:03:01]} hxg5 {[%emt 0:00:06]} 20. Rfd1 {[%emt 0:00:36]} g4 {[%emt 0:01:45]} 21. h4 {[%emt 0:00:57]} Bc8 {[%emt 0:08:30]} 22. Rxd8 {[%emt 0:04:41]} Rxd8 {[%emt 0:00:22]} 23. Rxd8 {[%emt 0:00:22]} Qxd8 {[%emt 0:00:03]} 24. Qxe5 {[%emt 0:00:43]} Qd1+ {[%emt 0:00:41]} 25. Bf1 {[%emt 0:01:19]} Qxc2 {[%emt 0:00:11]} 26. h5 {[%emt 0:00:55]} Be6 {[%emt 0:08:24]} 27. h6+ {[%emt 0:00:27]} 1-0